Cogmind - Beta 15 @@@ ROGUE MODE // 2025.05.14 @ 21:33:32 Player: Kipp Result: Destroyed by G-47 Trooper with Particle Gun Performance ------------- Evolutions (1) 500 Regions Visited (3) 600 Robots Destroyed (31) 155 Value Destroyed (874) 874 Prototype IDs (1) 20 Alien Tech Used (0) 0 Bonus (215) 215 TOTAL SCORE: 2364 Bonus ------- Follower Combat Kills 215 Cogmind --------- Core Integrity 0/400 Matter 186/300 Energy 249/265 System Corruption 4% Temperature Hot (240) Movement Treading (240) Ox1 Location -9/Storage Parts ------- > --- POWER (2) -------- Reinforced Ion Engine > --- PROPULSION (2) --- Light Treads Aluminum Leg > --- UTILITY (3) ------ Large Storage Unit Hardened Light Armor Plating Trap Extractor (0/4) > --- WEAPON (2) ------- Spread Laser > --- INVENTORY (15) --- Cooled VTOL Module Heat Sink Terrain Scan Processor Drone Bay (2/2) Rocket Launcher Mini Grenade Launcher Mini Grenade Launcher Mining Laser Peak State ------------ > --- POWER ------------ Improved Ion Engine Reinforced Ion Engine > --- PROPULSION ------- Light Treads Light Treads > --- UTILITY ---------- Improved Heat Sink Large Storage Unit Hardened Light Armor Plating > --- WEAPON ----------- Particle Gun Shotgun > --- INVENTORY -------- Light Nuclear Core Aluminum Leg Aluminum Leg Aluminum Leg Cooled VTOL Module Heat Sink Terrain Scan Processor Hardened Light Armor Plating Trap Extractor Drone Bay Small Laser Rocket Launcher Mini Grenade Launcher Mini Grenade Launcher Mining Laser [Rating: 19] Favorites ----------- Power Reinforced Ion Engine Engine Reinforced Ion Engine Power Core Light Nuclear Core Propulsion Light Treads Treads Light Treads Leg Aluminum Leg Wheel Compact Wheel Flight Unit Cooled VTOL Module Utility Large Storage Unit Device Improved Heat Sink Storage Large Storage Unit Processor Signal Interpreter Protection Hardened Light Armor Plating Weapon Particle Gun Energy Gun Particle Gun Ballistic Gun Shotgun Launcher Rocket Launcher Build | -11 -10 -9 -9 ------- Run | Yrd Mat Mat Sto Slots Evolved 2 | . . 2 . Power 1 | . . 1 . Propulsion . | . . . . Utility 1 | . . 1 . Weapon . | . . . . Parts Attached 37 | 7 6 9 15 Power 7 | 1 1 2 3 Engine 6 | 1 1 2 2 Core 1 | . . . 1 Reactor . | . . . . Propulsion 10 | 2 . 2 6 Treads 4 | . . 2 2 Leg 3 | . . . 3 Wheel 2 | 2 . . . Hover . | . . . . Flight 1 | . . . 1 Utility 9 | 1 3 3 2 Device 2 | . . . 2 Storage 2 | 1 1 . . Processor 1 | . 1 . . Hackware . | . . . . Protection 4 | . 1 3 . Artifact . | . . . . Weapon 11 | 3 2 2 4 Energy Gun 6 | 1 2 1 2 Energy Cannon . | . . . . Ballistic Gun 3 | 2 . . 1 Ballistic Cannon . | . . . . Launcher 2 | . . 1 1 Special Weapon . | . . . . Impact Weapon . | . . . . Slashing Weapon . | . . . . Piercing Weapon . | . . . . Special Melee Weapon . | . . . . Unidentified Prototypes 1 | . . . 1 Parts Lost 24 | . . 8 16 Power 5 | . . 2 3 Propulsion 7 | . . 2 5 Utility 4 | . . 1 3 Weapon 8 | . . 3 5 Highest Loss Streak 8 | . . 8 8 To Critical Strikes . | . . . . Average Backups 12 | 3 12 11 12 Power 1 | . 1 . . Propulsion 3 | 2 4 3 3 Utility 3 | . 2 3 3 Weapon 4 | 1 4 3 4 Tool/Special . | . . . . Unused Backups 6 | . . . 6 Power . | . . . . Propulsion . | . . . . Utility 3 | . . . 3 Weapon 3 | . . . 3 Tool/Special . | . . . . Average Slot Usage (%) 94 | . 96 87 95 Engine 19 | . 14 19 21 Treads 12 | . . 11 17 Leg 1 | . . . 2 Wheel 8 | . 28 8 2 Device 7 | . . . 11 Storage 11 | . 14 11 11 Processor 1 | . 4 7 . Protection 8 | . 6 10 8 Energy Gun 13 | . 17 8 13 Ballistic Gun 5 | . 10 7 3 Launcher 2 | . . 3 3 Peak Build Rating 19 | 6 11 14 19 Average Rating 14 | 3 9 10 16 On Entrance 7 | . 6 10 14 Naked Turns . | . . . . Heaviest Build 51 | 11 36 49 51 Greatest Support 40 | 32 32 40 40 Greatest Overweight (x) 8 | . 1 1 8 Average Overweight (x) . | . . . 1 Largest Inventory Capacity 15 | 8 15 15 15 Average Capacity 14 | 6 14 15 15 Most Carried 15 | 6 15 14 15 Average Carried 12 | 3 12 10 12 Final Capacity 15 | 8 15 15 15 Final Carried 15 | 6 15 10 8 Class Distribution -------------------- 56% | Scavenger-Mutant 43% | Mutant Dominant Class ---------------- Mutant | -10/Materials Mutant | -9/Materials Scavenger-Mutant | -9/Storage Resources | -11 -10 -9 -9 ----------- Run | Yrd Mat Mat Sto Matter Collected 787 | 141 190 108 348 Remotely . | . . . . Salvage Created 959 | . 212 245 502 Parts 47 | . 12 16 19 Haulers Intercepted . | . . . . Recyclers Shooed . | . . . . Parts Field Recycled . | . . . . Retrieved Matter . | . . . . Parts Self-Destructed . | . . . . Prevented . | . . . . Kills | -11 -10 -9 -9 ------- Run | Yrd Mat Mat Sto Combat Hostiles Destroyed 27 | . 7 8 12 Guns 19 | . 5 5 9 AOE 8 | . 2 3 3 Classes Destroyed 6 | . 2 3 1 Builder 2 | . . 1 1 Watcher 1 | . . . 1 Swarmer 7 | . 3 3 1 Grunt 14 | . 4 3 7 Brawler 1 | . . 1 . Sentry 6 | . . 1 5 Best Kill Streak 3 | . 3 3 2 Combat Bots Only 3 | . 3 3 2 Max Kills in Single Turn 2 | . 2 2 2 Gunslinging . | . . . . Exploded 2 | . 2 1 2 Melee . | . . . . Uniques/NPCs Destroyed . | . . . . Combat | -11 -10 -9 -9 -------- Run | Yrd Mat Mat Sto Hostile Shots Fired 285 | . 21 102 162 Missed 76 | . 8 26 42 Hits 209 | . 13 76 120 Melee 1 | . . 1 . Projectile 208 | . 13 75 120 Critical Strikes 5 | . . 2 3 Damage Taken 2806 | . 125 1042 1639 Core 427 | . 22 153 252 Absorbed by Shields . | . . . . Core Remaining (%) 95 | 100 91 . . Volleys Fired 80 | . 14 25 41 Largest 2 | . 2 2 2 Hottest 130 | . 90 90 130 Shots Fired 148 | . 28 46 74 Gun 137 | . 28 42 67 Cannon . | . . . . Launcher 11 | . . 4 7 Special . | . . . . Kinetic 57 | . . 37 20 Thermal 50 | . . 3 47 Explosive 11 | . . 4 7 Electromagnetic 30 | . 28 2 . Robot Hit Streak 13 | . 4 13 10 Robot Miss Streak 6 | . 4 6 3 Penetration Max . | . . . . Secondary Targets 5 | . 1 3 1 Max Gunslinging Chain 1 | . 1 1 1 Shots Hit Robots 96 | . 12 27 57 Core Hits 55 | . 8 14 33 Critical Kills . | . . . . Critical Parts Destroyed 2 | . . 1 1 Critical Strikes 6 | . 1 1 4 Burn 3 | . . . 3 Destroy 2 | . . 1 1 Corrupt 1 | . 1 . . Melee Attacks . | . . . . Impact . | . . . . Slashing . | . . . . Piercing . | . . . . Sneak Attacks . | . . . . Combat Hostiles . | . . . . Follow-up Attacks . | . . . . Damage Inflicted 1951 | . 296 485 1170 Guns 1294 | . 183 241 870 Cannons . | . . . . Explosions 644 | . 113 244 287 Melee . | . . . . Ramming 13 | . . . 13 Kinetic 516 | . . 227 289 Thermal 708 | . 113 14 581 Explosive 531 | . . 244 287 Electromagnetic 183 | . 183 . . Impact . | . . . . Slashing . | . . . . Piercing . | . . . . Highest Corruption 4 | . . 4 4 Average Corruption 4 | . . 4 4 Corruption Purged . | . . . . Corruption Blocked . | . . . . Effects 31 | . . 2 29 Message Errors 10 | . . . 10 Matter Fused 7 | . . 1 6 Heat Flow Errors 2 | . . . 2 Energy Discharges 2 | . . 1 1 Data Loss (minor) 3 | . . . 3 Data Loss (major) 1 | . . . 1 Misfires 3 | . . . 3 Alerts 2 | . . . 2 Weapon Failures 1 | . . . 1 Overload Shots . | . . . . Overflow Damage 17 | . . 11 6 Projectiles . | . . . . Explosions 17 | . . 11 6 Melee . | . . . . Knockbacks . | . . . . Impact . | . . . . Kinetic . | . . . . Secondary . | . . . . Self-Inflicted Damage 238 | . . 192 46 Shots 5 | . . 4 1 Rammed 2 | . . . 2 Targets Rammed 4 | . . . 4 Kicked 2 | . . . 2 Crushed . | . . . . Highest Temperature 345 | . 345 168 315 Average Temperature 94 | . 127 52 99 Received Heat Transfer 1065 | . 36 273 756 Effects 2 | . 1 . 1 Interference 1 | . . . 1 Matter Decay 1 | . 1 . . Siege Activations . | . . . . Martial Activations . | . . . . Shielding Activations . | . . . . Robots Disrupted . | . . . . Combat Hostiles . | . . . . Robots Corrupted . | . . . . Combat Hostiles . | . . . . Parts Fried . | . . . . Impact Corruptions . | . . . . Robots Melted . | . . . . Combat Hostiles . | . . . . Parts Melted 2 | . . . 2 Heat Transferred 1727 | . 150 37 1540 Parts Sabotaged . | . . . . Parts Stolen . | . . . . Parts Stripped . | . . . . Power Chain Reactions 2 | . 2 . . Alert | -11 -10 -9 -9 ------- Run | Yrd Mat Mat Sto Maximum Alert Level . | . . . . Low Security (%) 100 | 100 100 100 100 Level 1 . | . . . . Level 2 . | . . . . Level 3 . | . . . . Level 4 . | . . . . Level 5 . | . . . . High Security . | . . . . Max Security . | . . . . Peak Influence 154 | . 154 150 97 Initial 54 | . . 52 54 Average 43 | . 59 65 36 Influence Increases 1223 | . 254 268 701 Destroy 0b10 Robot/C 680 | . 140 160 380 Destroy 0b10 Robot/NC 20 | . . 5 15 Destroy Leader 204 | . 30 40 134 Allied During Kill 56 | . . . 56 Successful Hack 16 | . . . 16 Disable Machine 45 | . . 30 15 Destroy Structure 97 | . 9 33 55 Partial Spotted 15 | . . . 15 Lose Combat Pursuer 90 | . 75 . 15 Influence Decreases 1223 | . 128 264 831 Entered New Map 150 | . . 74 76 Time Decay 659 | . 128 110 421 Lost Part 234 | . . 80 154 Lost Ally 180 | . . . 180 Squads Dispatched 7 | . 2 1 4 Investigation 1 | . . . 1 Extermination . | . . . . Reinforcement 5 | . 2 1 2 Assault . | . . . . Garrison 1 | . . . 1 Intercept . | . . . . Searches Triggered . | . . . . Construction Impeded 2 | . . 1 1 Haulers Reinforced . | . . . . Active Scanning Responses . | . . . . Cargo Convoy Interrupts . | . . . . Stealth | -11 -10 -9 -9 --------- Run | Yrd Mat Mat Sto Distress Signals 3 | . . . 3 Communications Jammed . | . . . . Distress Signals . | . . . . Times Spotted 51 | . 14 9 28 Peak Tracking Total 10 | . 4 7 10 Tactical Retreats 3 | . 2 . 1 Traps | -11 -10 -9 -9 ------- Run | Yrd Mat Mat Sto Traps Triggered 1 | . . . 1 Indirectly . | . . . . Trap Hack Attempts . | . . . . Triggered . | . . . . Disarmed . | . . . . Reprogrammed . | . . . . Reused . | . . . . Traps Extracted . | . . . . Installed . | . . . . Triggered . | . . . . Machines | -11 -10 -9 -9 ---------- Run | Yrd Mat Mat Sto Machines Disabled 3 | . . 2 1 Max in Single Turn 1 | . . 1 1 Machines Repaired . | . . . . Machines Dismantled . | . . . . Machines Sabotaged . | . . . . Overloaded Fab Kills . | . . . . Hacking | -11 -10 -9 -9 --------- Run | Yrd Mat Mat Sto Machines Accessed 8 | . 2 1 5 Terminals 6 | . 1 1 4 Fabricators . | . . . . Repair Stations 1 | . . . 1 Recycling Units 1 | . 1 . . Scanalyzers . | . . . . Garrison Access . | . . . . Total Hacks 18 | . 5 1 12 Successful 10 | . 3 1 6 Failed 7 | . 2 . 5 Catastrophic 2 | . . . 2 Database Lockouts 1 | . . . 1 Manual 2 | . 1 1 . Terminals 10 | . 1 1 8 Fabricators . | . . . . Repair Stations 4 | . . . 4 Recycling Units 4 | . 4 . . Scanalyzers . | . . . . Garrison Access . | . . . . Terminal Hacks 6 | . 1 1 4 Record 2 | . . . 2 Open Door 1 | . . . 1 Branch Access Points 2 | . 1 . 1 Zone Layout 1 | . . 1 . Fabricator Hacks . | . . . . Repair Station Hacks 2 | . . . 2 Scan Component 2 | . . . 2 Recycling Unit Hacks 2 | . 2 . . Report Inventory 1 | . 1 . . Retrieve Components 1 | . 1 . . Scanalyzer . | . . . . Garrison Access Hacks . | . . . . Unauthorized Hacks . | . . . . Terminals . | . . . . Fabricators . | . . . . Repair Stations . | . . . . Recycling Units . | . . . . Scanalyzers . | . . . . Garrison Access . | . . . . Data Cores Recovered . | . . . . Used . | . . . . Hacking Detections 5 | . 2 . 3 Full Trace Events . | . . . . Feedback Events . | . . . . Feedback Blocked . | . . . . Robot Schematics Acquired . | . . . . Robots Built . | . . . . Authchips . | . . . . Time . | . . . . Total Robot Build Rating . | . . . . Part Schematics Acquired . | . . . . Parts Built . | . . . . Authchips . | . . . . Time . | . . . . Total Part Build Rating . | . . . . Parts Repaired . | . . . . Time . | . . . . Parts Recycled . | . . . . Recycled Matter . | . . . . Retrieved Matter . | . . . . Retrieved Components 2 | . 2 . . Parts Scanalyzed . | . . . . Part Schematics Acquired . | . . . . Parts Damaged . | . . . . Bothacking | -11 -10 -9 -9 ------------ Run | Yrd Mat Mat Sto Used RIF Installer . | . . . . Robots Hacked . | . . . . Non-combat . | . . . . Combat . | . . . . Robot Hacks Applied . | . . . . Relay Couplers Released . | . . . . Fabnet Peak Effective % . | . . . . Robots Rewired . | . . . . Allies Hacked . | . . . . Hacks Repelled . | . . . . Allies | -11 -10 -9 -9 -------- Run | Yrd Mat Mat Sto Total Allies 10 | . . . 10 Largest Group 10 | . . . 10 Highest-Rated Group 88 | . . . 88 Highest-Rated Ally 16 | . . . 16 Total Orders 1 | . . . 1 GUARD 1 | . . . 1 Ally Attacks 55 | . . . 55 Total Damage 540 | . . . 540 Kills 8 | . . . 8 Allies Corrupted . | . . . . Allies Melted . | . . . . Intel | -11 -10 -9 -9 ------- Run | Yrd Mat Mat Sto Active Infowar (turns) . | . . . . Robot Analysis Total . | . . . . Derelict Logs Recovered . | . . . . Drone Launches . | . . . . Drone Recoveries . | . . . . Exploration | -11 -10 -9 -9 ------------- Run | Yrd Mat Mat Sto Turns Passed 1855 | 70 400 221 1164 Spaces Moved 897 | 52 313 96 436 Core 3 | 3 . . . Treads 386 | . . 38 348 Legs 22 | . . . 22 Wheels 485 | 49 313 58 65 Hover . | . . . . Flight 1 | . . . 1 Fastest Speed 50 | 50 100 115 115 Average Speed 164 | 97 103 132 223 Slowest Speed 565 | 100 115 160 565 Overloaded Moves . | . . . . Propulsion Burnouts . | . . . . Robots Hopped . | . . . . Potential Cave-ins . | . . . . Cave-ins Triggered . | . . . . Exploration Rate (%) 27 | 5 37 9 58 Regions Visited 3 Branch Regions 1 Pre-discovered Areas . | . . . . Known Exits Taken 2 | . 1 1 . Unknown Exits Taken 1 | 1 . . . Scrap Searched . | . . . . Spaces Dug . | . . . . Terrain Destroyed 103 | . 7 39 57 Melee . | . . . . Projectile . | . . . . AOE 103 | . 7 39 57 Terrain Rammed . | . . . . Walls Destroyed . | . . . . Machines Disabled . | . . . . Actions | -11 -10 -9 -9 --------- Run | Yrd Mat Mat Sto Total 1135 | 71 362 149 553 Wait 43 | . 12 6 25 Move 894 | 51 312 95 436 Hop . | . . . . Pick Up 46 | 12 12 5 17 Fast Attach . | . . . . Attach 46 | 7 6 14 19 Detach 13 | 1 4 4 4 Swap 2 | . . . 2 Drop 7 | . 2 . 5 Fire 80 | . 14 25 41 Melee . | . . . . Ram . | . . . . Kick 2 | . . . 2 Crush 2 | . . . 2 Escape Stasis . | . . . . Rewire . | . . . . Trap . | . . . . Miscellaneous . | . . . . Route ------- -11/Scrapyard -10/Materials (discovered 2 exits: *Mat / Min) -9/Materials -9/Storage (discovered 1 exit: Rec) History --------- Turn | Location | Event 2 | -11/Scrapyard | Met Revision 17 11 | -11/Scrapyard | Discovered new exit (range 15) 71 | -11/Scrapyard | Entered Materials 135 | -10/Materials | Identified exit to Mines 306 | -10/Materials | Build established: Mutant 402 | -10/Materials | Discovered new exit (range 16) 451 | -10/Materials | Identified exit to Materials 471 | -10/Materials | Entered another Materials area 471 | -9/Materials | Evolved 2 slots: Power x1, Utility x1 510 | -9/Materials | Discovered new exit (range 12) 531 | -9/Materials | Identified exit to Storage 667 | -9/Materials | Lost 8 parts (2p2n1u3w) 692 | -9/Materials | Entered Storage 745 | -9/Storage | Central database locked down 747 | -9/Storage | Assisted by bots powering up and referring to "LRC-V3" 779 | -9/Storage | Lost 3 parts (1p1u1w) 828 | -9/Storage | Lost 9 allies 833 | -9/Storage | Lost 3 parts (2n1w) 1067 | -9/Storage | Core integrity fell below 50% 1106 | -9/Storage | Build established: Scavenger-Mutant 1111 | -9/Storage | Identified exit to Recycling 1779 | -9/Storage | Garrison activated, responded to threat 1799 | -9/Storage | Core integrity fell below 20% 1856 | -9/Storage | Destroyed by G-47 Trooper with Particle Gun Last Messages --------------- 01800_ #VVPNJ% V OOWU% N7XZ2ZG/ILV2HX 01814_ Imp. Ion Engine destroyed. 01818_ System corrupted: Matter fused (-5). 01818_ Shotgun destroyed. 01823_ Overheating: System interference. 01823_ Trap Extractor temporarily disabled. 01825_ Particle Gun destroyed. 01829_ Aluminum Leg destroyed. 01829_ U-05 Engineer builds a Door. 01832_ M-13 Machinist repairs G-34 Mercenary. 01835_ Aluminum Leg destroyed. 01837_ Identified Cld. VTOL Module. Flying robots can pass through spaces occupied by others, even hostile robots. The Cld. VTOL Module is "overloadable", activating it again increases its output for additional resource costs, and may damage the unit. See Burnout stat context help for more info. 01850_ Lgt. Nuclear Core destroyed. Map ----- +----------------------------------------------------+ | ?????????????????###?????????# # * ##??## #### | | ?????????????????????????????# # ##???#####?# | | ?????????????????????????????# # ##?????##### | | ?????????????????????????????### #??????# # # | | ???????????????????????????????# #??###### ##! | | ???????????????????????????????# #??#!!!!# ## | | ???????????????????????????????#""" #### "%# | | ???????????????????????????????#""" ""##!!! #=+% | | ???????????????????????????????#""" T"######### | | ???????????????????????????????#""" ""#?????### | | ???????????????????????????? #""" ###???????# | | ???????????????????????????? # #?????????## | | ???????????????????????????# #######??????????# | | ???????????????????????????# #????????????????# | | ???????????????????????????/ #????????????????# | | ???????????????????????????# #???????????????## | | ???????????????????????????# #???????????????## | | ???????????????????????????# #????????##?????## | | ???????????????????????????# #????????# ###???# | | ???????????????????????????# #????????# ??# | | ???????????????????????????# #????????# ??#% | | ????????????????????????#### #????????? ?#= | | ????????????????????????# # #????????# """ ?# | | ????????????????????????" #k #????????# """ # | | ????????????????????????" g +????????# """ #% | | ????????????????????????"@ # #????????# +* | | ????????????????????????#T## #????????# """ #! | | ????????????????????????#### #????????# """ # | | ???????????????????????????# #????????# """ ?# | | ??????????????????##???????# #??????### ?#% | | ?????????????###### #??????# #??????# ######### | | ?????????????# ??????# #??????# # | | ?????????????# ?????# #??????# ! # | | ?????????????? ?????# #??????# ! # | | ???????????????"""" ????# #??????# %[ #% | | ???????????????"""" [##### ######## / | | ???????????????"""" %%/%! + # | | ???????????????"""" =#! ######## # | | ?????????????# / #??????# # | | ?????????????####+###########+##??????########### | | ????????????????????????????? ????????? ????## | | ????????????????????????????? ???????" ""??# | | ????????????????????????????? #????"" """ # | | ????????????????????????????? ##????"" """ + " | | ?????????????????????????????]] #??# # | | ?????????????????????????????] ! #??# # | | ??????>?????????????????????? #?# ?### | | ?????????????????????????????? #?## ????? | | ??????????????????????????????#####??#######?????? | | ?????????????????????????????????????????????????? | +----------------------------------------------------+ Best States ------------- Heat Dissipation 42 Energy Generation 21 Energy Capacity 430 Matter Stores 300 Matter Capacity 300 Sight Range 16 Terrain Scan Density 10 Armor Coverage 300 Evasion (%) 40 Recoil Reduction 2 Trap Extractor Capacity 4 Item Schematics ----------------- None Robot Schematics ------------------ None Fabricated ------------ Nothing Repaired ---------- Nothing Alien Tech Used ----------------- None Achievements -------------- Maybe Next Time I'll Detach My Launcher The More The Merrier Challenges ------------ None Game ------ Seed ZhirovInsulationAmplifier Manual? 0 Play Time 00:32:00 Cumulative 5.3 hours Start 2025.05.14 @ 21:02:47 End 2025.05.14 @ 21:33:32 Sessions 1 Manual Loads 0 Difficulty Rogue Special Mode None Game No. 8 Rogue 8 Adventurer 0 Explorer 0 Win Type - Total 0 Types 0/0/0/0/0/0/0/0/0/0 Lore% 1 Gallery% 9 Achievement% 8 Wizard Run 0 Options --------- Layout 1 ASCII 0 Keyboard 0 Movement Numpad Keybinds 0 Fullscreen 2 Font 24/Swanston Map View 50x35 Zoom Use 0% Tactical HUD 1 Map Filters NONE Filters NONE Steam 1 RUN: 760afa7c-43df-4bcc-9762-745e0a5ecc31